{"text_format":"1","workbook":"xlsx","n_sheets":1,"sheets":["日比谷野外大音楽堂の履歴"],"not_rendered":{"charts":0,"images":0,"macros":1,"external_links":0,"defined_names":0,"comments":0,"pivot_tables":0},"unopened":[],"bounds":{"document_bytes":16777216,"sheet_cells":100000,"rows_first":2000,"rows_last":500,"rows_between":2000,"halvings":0,"cell_chars":16384,"cell_head_chars":4096},"cells_cut":0,"cells_raw":0,"read":"whole","date_system":"1900"}

{"sheet":"日比谷野外大音楽堂の履歴","index":0,"n_rows":37,"n_cols":43,"rows_kept":37,"cut":false,"hidden":false,"merged":[]}
["日比谷野外大音楽堂の履歴"]
["No.","1990-09-29","1991-09-22","1992-09-19","1993-10-16","1994-09-15","1995-07-01","1996-09-08","1997-09-13","1998-08-22","1998-08-23","1999-07-03","1999-07-04","2000-07-01","2000-07-02","2001-07-07","2001-07-08","2002-09-28","2003-07-21","2004-07-03","2005-07-09","2006-10-07","2007-05-26","2008-06-28","2009-10-24","2009-10-25","2010-07-17","2011-09-17","2012-10-14","2013-09-14","2013-09-15","2014-10-19","2015-09-27","2016-09-17","2016-09-18","2017-09-18","2018-06-23","2019-07-06","2019-07-07","2020-10-04","2022-09-25","2023-10-08","2025-09-28"]
[null,{"$f":"TEXT(B2,\"aaaa\")","v":"土曜日"},{"$f":"TEXT(C2,\"aaaa\")","v":"日曜日"},"土曜日","土曜日","木曜日","土曜日","日曜日","土曜日","土曜日","日曜日","土曜日","日曜日","土曜日","日曜日","土曜日","日曜日","土曜日","月曜日","土曜日","土曜日","土曜日","土曜日","土曜日","土曜日","日曜日","土曜日","土曜日","日曜日","土曜日","日曜日","日曜日","日曜日","土曜日","日曜日","月曜日","土曜日","土曜日","日曜日","日曜日","日曜日","日曜日","日曜日"]
[1,"ファイティングマン","優しい川","優しい川","夢のちまた","奴隷天国","おはよう　こんにちは","夢のちまた","明日に向かって走れ","ファイティングマン","ファイティングマン","奴隷天国","奴隷天国","ｓｏ　ｍａｎｙ　ｐｅｏｐｌｅ","ｓｏ　ｍａｎｙ　ｐｅｏｐｌｅ","ガストロンジャー","ガストロンジャー","夢を見ようぜ","男は行く","この世は最高！","生命賛歌","ファイティングマン","夢のちまた","パワー・イン・ザ・ワールド","夢のちまた","奴隷天国","おはよう　こんにちは","歴史","夢のちまた","優しい川","平成理想主義","おはよう　こんにちは","おはよう　こんにちは","ズレてる方がいい","ズレてる方がいい","地元のダンナ","Ｗａｋｅ　Ｕｐ","シグナル","シグナル","夢のちまた","過ぎゆく日々","地元のダンナ"]
[2,"デーデ","デーデ","金でもないかと","うつらうつら","甘い夢さえ","ＧＴ","夢を見ようぜ","夢を見ようぜ","夢を見ようぜ","夢を見ようぜ","おはよう　こんにちは","おはよう　こんにちは","悲しみの果て","悲しみの果て","夢を見ようぜ","夢を見ようぜ","女神になって","珍奇男","かけだす男","デーデ","歴史","俺たちの明日","うつらうつら","俺の道","俺の道","ドビッシャー男","孤独な旅人","悲しみの果て","ハロー人生！！","地元のダンナ","悲しみの果て","ドビッシャー男","歴史","歴史","悲しみの果て","Ｅａｓｙ　Ｇｏ","愛の夢をくれ","愛の夢をくれ","ＤＥＡＤ　ＯＲ　ＡＬＩＶＥ","地元のダンナ","いつものとおり"]
[3,"星の砂","星の砂","デーデ","星の砂","真冬のロマンチック","ゲンカクＧｅｔ　Ｕｐ　Ｂａｂｙ","デーデ","デーデ","Ｔｏｎｉｇｈｔ","Ｔｏｎｉｇｈｔ","デーデ","デーデ","風に吹かれて","風に吹かれて","夢のちまた","夢のちまた","暑中見舞－憂鬱な午後－","遁生","悲しみの果て","浮き草","明日に向かって走れ","四月の風","孤独な旅人","女神になって","達者であれよ","ファイティングマン","悲しみの果て","約束","四月の風","四月の風","浮世の姿","悲しみの果て","ゴッドファーザー","ゴッドファーザー","星の砂","おはよう　こんにちは","孤独な旅人","孤独な旅人","Ｅａｓｙ　Ｇｏ","デーデ","もしも願いが叶うなら"]
[4,"ｔｏｏ　ｆｉｎｅ　ｌｉｆｅ","太陽ギラギラ","浮き草","デーデ","誰かのささやき","デーデ","星の砂","ＧＴ","四月の風","四月の風","星の砂","星の砂","誰かのささやき","甘い夢さえ","悲しみの果て","悲しみの果て","デーデ","浮雲男","四月の風","風に吹かれて","甘き絶望","偶成","デーデ","石橋たたいて八十年","石橋たたいて八十年","うつらうつら","ふわふわ","リッスントゥザミュージック","悲しみの果て","悲しみの果て","ひまつぶし人生","ああ流浪の民よ","ふわふわ","浮き草","涙の数だけ","浮き草","明日に向かって走れ","明日に向かって走れ","地元のダンナ","星の砂","季節はずれの男"]
[5,"晩秋の一夜","珍奇男","星の砂","浮き草","夢を見ようぜ","星の砂","ゲンカクＧｅｔ　Ｕｐ　Ｂａｂｙ","上野の山","孤独な旅人","孤独な旅人","真夜中のヒーロー","真夜中のヒーロー","今宵の月のように","今宵の月のように","孤独な旅人","孤独な旅人","風に吹かれて","ゴクロウサン","今宵の月のように","悲しみの果て","孤独な旅人","奴隷天国","平成理想主義","暮れゆく夕べの空","暮れゆく夕べの空","ｔｏｏ　ｆｉｎｅ　ｌｉｆｅ","勉強オレ","月の夜","東京からまんまで宇宙","東京からまんまで宇宙","お前の夢を見た（ふられた男）","誰かのささやき","道","道","Ｔｏｎｉｇｈｔ","上野の山","面影（おもかげ）","面影（おもかげ）","デーデ","ふわふわ","赤き空よ！"]
[6,"月の夜","晩秋の一夜","珍奇男","浮雲男","デーデ","甘い夢さえ","土手","誰かのささやき","ｇｏｏｄ－ｂｙｅ－ｍａｍａ","ｇｏｏｄ－ｂｙｅ－ｍａｍａ","ビリージャン","ビリージャン","ゴッドファーザー","ゴッドファーザー","東京ジェラシィ","東京ジェラシィ","武蔵野","デーデ","夢のかけら","今宵の月のように","かけだす男","悲しみの果て","東京ジェラシィ","悲しみの果て","悲しみの果て","シャララ","無事なる男","うつらうつら","大地のシンフォニー","大地のシンフォニー","化ケモノ青年","暮れゆく夕べの空","おれのともだち","おれのともだち","おまえはどこだ","人間って何だ","こうして部屋で寝転んでるとまるで死ぬのを待ってるみたい","こうして部屋で寝転んでるとまるで死ぬのを待ってるみたい","星の砂","偶成","デーデ"]
[7,"凡人－散歩き－","夕立をまってた","浮世の姿","ふわふわ","金でもないかと","孤独な旅人","流されてゆこう","もしも願いが叶うなら","誰かのささやき","誰かのささやき","土手","土手","武蔵野","武蔵野","デーデ","デーデ","普通の日々","星の砂","もしも願いが叶うなら","すまねえ魂","ＧＴ","上野の山","一万回目の旅のはじまり","おかみさん","おかみさん","道","太陽の季節","見果てぬ夢","めんどくせい","めんどくせい","星の砂","夢のかけら","ｔｏｏ　ｆｉｎｅ　ｌｉｆｅ","土手","九月の雨","おれのともだち","翳りゆく部屋","翳りゆく部屋","何も無き一夜","月の夜","珍奇男"]
[8,"ＧＴ","ＧＴ","日曜日（調子はどうだ）","浮世の姿","ＧＴ","誰かのささやき","孤独な旅人","甘い夢さえ","いつものとおり","いつものとおり","サラリサラサラリ","サラリサラサラリ","ｇｏｏｄ　ｍｏｒｎｉｎｇ","ｇｏｏｄ　ｍｏｒｎｉｎｇ","ＧＴ","ＧＴ","月の夜","奴隷天国","誰かのささやき","お前の夢を見た（ふられた男）","デーデ","てって","赤い薔薇","遁生","凡人－散歩き－","人間って何だ","うれしけりゃとんでゆけよ","涙を流す男","デーデ","ゴクロウサン","太陽ギラギラ","月の夜","風に吹かれて","サラリサラサラリ","曙光","星の砂","リッスントゥザミュージック","リッスントゥザミュージック","無事なる男","珍奇男","穴があったら入いりたい"]
[9,"偶成","待つ男","ひまつぶし人生","珍奇男","珍奇男","真冬のロマンチック","かけだす男","月夜の散歩","さらば青春","さらば青春","遁生","遁生","情熱の揺れるまなざし","眠れない夜","上野の山","上野の山","秋－さらば遠い夢よ－","待つ男","月の夜","孤独な旅人","無事なる男","ＤＪ　ｉｎ　ｍｙ　ｌｉｆｅ","勝利を目指すもの","何も無き一夜","やさしさ","星の砂","月夜の散歩","花男","星の砂","星の砂","見果てぬ夢","自宅にて","いつものとおり","風に吹かれて","ｔｏｏ　ｆｉｎｅ　ｌｉｆｅ","珍奇男","彼女は買い物の帰り道","彼女は買い物の帰り道","珍奇男","昔の侍","四月の風"]
[10,"遁生","やさしさ","お前の夢を見た（ふられた男）","おまえはどこだ","もしも願いが叶うなら","珍奇男","愛の日々","月の夜","珍奇男","珍奇男","珍奇男","珍奇男","Ｌａｄｉｅｓ　ａｎｄ　Ｇｅｎｔｌｅｍｅｎ","情熱の揺れるまなざし","孤独な太陽","涙","ひまつぶし人生","花男","歴史","珍奇男","絶交の歌","愛の日々","せいので飛び出せ！","いつものとおり","土手","パワー・イン・ザ・ワールド","サラリサラサラリ","俺たちの明日","涙を流す男","涙を流す男","珍奇男","待つ男","月の夜","いつものとおり","秋－さらば遠い夢よ－","武蔵野","笑顔の未来へ","笑顔の未来へ","晩秋の一夜","Ｉ　ｄｏｎ’ｔ　ｋｎｏｗ　たゆまずに","さらば青春"]
[11,"男は行く","男は行く","通りを越え行く","太陽の季節","東京の空","星の降るような夜に","真冬のロマンチック","かけだす男","おまえと突っ走る","おまえと突っ走る","旅の途中","旅の途中","コール　アンド　レスポンス","Ｌａｄｉｅｓ　ａｎｄ　Ｇｅｎｔｌｅｍｅｎ","昔の侍","孤独な太陽","極楽大将生活賛歌","赤い薔薇","化ケモノ青年","真夏の星空は少しブルー","何も無き一夜","翳りゆく部屋","今をかきならせ","珍奇男","珍奇男","生命賛歌","ラスト・ゲーム","笑顔の未来へ","はてさてこの俺は","はてさてこの俺は","きみの面影だけ","ＴＥＫＵＭＡＫＵＭＡＹＡＫＯＮ","珍奇男","月の夜","真夏の星空は少しブルー","神様俺を","ハナウタ～遠い昔からの物語～","ハナウタ～遠い昔からの物語～","月の夜","未来の生命体","甘き絶望"]
[12,null,null,"曙光","星の降るような夜に","男餓鬼道空っ風","土手","いつものとおり","Ｂａｂｙ自転車","かけだす男","かけだす男","かけだす男","ドビッシャー男","さらば青春","コール　アンド　レスポンス","Ｌａｄｉｅｓ　ａｎｄ　Ｇｅｎｔｌｅｍｅｎ","昔の侍","ファイティングマン","悲しみの果て","友達がいるのさ","道","珍奇男","風に吹かれて","真夏の星空は少しブルー","生命賛歌","生命賛歌","月夜の散歩","Ｔｏｎｉｇｈｔ","ズレてる方がいい","翳りゆく部屋","なぜだか、俺は祷ってゐた。","真夏の星空は少しブルー","星の砂","武蔵野","珍奇男","珍奇男","いつもの顔で","明日への記憶","明日への記憶","武蔵野","なぜだか、俺は祷ってゐた。","武蔵野"]
[13,null,null,"果てしなき日々","曙光","星の降るような夜に","夢を見ようぜ","月の夜","うれしけりゃとんでゆけよ","ココロのままに","ココロのままに","うれしけりゃとんでゆけよ","うれしけりゃとんでゆけよ","遠い浜辺","昔の侍","ゴッドファーザー","Ｌａｄｉｅｓ　ａｎｄ　Ｇｅｎｔｌｅｍｅｎ","おまえと突っ走る","四月の風","赤い薔薇","人生の午後に","寒き夜","あなたのやさしさをオレは何に例えよう","遁生","武蔵野","曙光","武蔵野","秋－さらば遠い夢よ－",null,"風に吹かれて","風に吹かれて","月の夜","珍奇男","流れ星のやうな人生","武蔵野","月の夜","さよならパーティー","旅立ちの朝","旅立ちの朝","パワー・イン・ザ・ワールド","この世は最高！","Ｂａｂｙ自転車"]
[14,null,null,"男は行く","遁生","ゴクロウサン","Ｂａｂｙ自転車","珍奇男","戦う男","夢のかけら","夢のかけら","待つ男","待つ男","昔の侍","さらば青春","武蔵野","ゴッドファーザー","男餓鬼道空っ風","今宵の月のように","あなたのやさしさをオレは何に例えよう","おまえと突っ走る","友達がいるのさ","笑顔の未来へ","月と歩いた","季節はずれの男","季節はずれの男","幸せよ、この指にとまれ","ハローＮｅｗ　Ｙｏｒｋ！",null,"シグナル","シグナル","東京の空","極楽大将生活賛歌","昔の侍","流れ星のやうな人生","武蔵野","かけだす男","四月の風","四月の風","悲しみの果て","悲しみの果て","流れ星のやうな人生"]
[15,null,null,null,"奴隷天国","花男","ゴクロウサン","四月の風","今宵の月のように","涙の数だけ","涙の数だけ","悲しみの果て","悲しみの果て","ｓｗｅｅｔ　ｍｅｍｏｒｙ","真夏の星空は少しブルー","ｓｗｅｅｔ　ｍｅｍｏｒｙ","武蔵野","いつものとおり","どこへ？","ガストロンジャー","かけだす男","あなたのやさしさをオレは何に例えよう","Ｉ　ｄｏｎ’ｔ　ｋｎｏｗ　たゆまずに","月の夜","きみの面影だけ","ジョニーの彷徨","友達がいるのさ","風に吹かれて",null,"なからん","なからん","Ｉｔ’ｓ　ｍｙ　ｌｉｆｅ","四月の風","流されてゆこう","昔の侍","男餓鬼道空っ風","Ｄｅｓｔｉｎｙ","悲しみの果て","悲しみの果て","ＲＡＩＮＢＯＷ","ＲＡＩＮＢＯＷ","悲しみの果て"]
[16,null,null,null,null,"やさしさ","不明 (goodbye my friend)","おまえと突っ走る","男餓鬼道空っ風","男餓鬼道空っ風","男餓鬼道空っ風","四月の風","四月の風","Ｉ　ａｍ　ｈａｐｐｙ","Ｉ　ａｍ　ｈａｐｐｙ","ｓｏ　ｍａｎｙ　ｐｅｏｐｌｅ","ｓｗｅｅｔ　ｍｅｍｏｒｙ","星の降るような夜に","生命賛歌","ファイティングマン","ＯＨ　ＹＥＡＨ！（ココロに花を）","生命賛歌","生命賛歌","珍奇男","ジョニーの彷徨","人生の午後に","赤き空よ！","翳りゆく部屋",null,"明日への記憶","明日への記憶","Ｔｏｎｉｇｈｔ","生きている証","Ｂａｂｙ自転車","流されてゆこう","昔の侍","なぜだか、俺は祷ってゐた。","今宵の月のように","今宵の月のように","ガストロンジャー","東京の空","はじまりは今"]
[17,null,null,null,null,"この世は最高！","花男","ゴクロウサン","星の降るような夜に","デーデ","デーデ","サムライ","サムライ","ｓｏｕｌ　ｒｅｓｃｕｅ","ｓｗｅｅｔ　ｍｅｍｏｒｙ","暑中見舞－憂鬱な午後－","ｓｏ　ｍａｎｙ　ｐｅｏｐｌｅ","あなたのやさしさをオレは何に例えよう",null,"東京の空","うれしけりゃとんでゆけよ","地元のダンナ","今宵の月のように","友達がいるのさ","地元の朝","シグナル","歩く男","明日への記憶",null,"あなたへ","あなたへ","ｓｔａｒｔｉｎｇ　ｏｖｅｒ","ワインディングロード","悲しみの果て","Ｂａｂｙ自転車","シグナル","ズレてる方がいい","ＲＡＩＮＢＯＷ","ＲＡＩＮＢＯＷ","ズレてる方がいい","武蔵野","星くずの中のジパング"]
[18,null,null,null,null,"涙","始まりはいつも","うれしけりゃとんでゆけよ","涙","星の砂","星の砂","今宵の月のように","やさしさ","ガストロンジャー","精神暗黒街","ゴクロウサン","奴隷天国","この世は最高！",null,"曙光","四月の風","シグナル","ガストロンジャー","さらば青春","シグナル","晩秋の一夜","月の夜","新しい季節へキミと",null,"旅","さよならパーティー","笑顔の未来へ","月夜の散歩","ｓｏ　ｍａｎｙ　ｐｅｏｐｌｅ","悲しみの果て","パワー・イン・ザ・ワールド","オレを生きる","かけだす男","かけだす男","俺たちの明日","風に吹かれて","パワー・イン・ザ・ワールド"]
[19,null,null,null,null,"ファイティングマン","この世は最高！","ＯＨ　ＹＥＡＨ！（ココロに花を）","ファイティングマン","星の降るような夜に","星の降るような夜に","愛の夢をくれ","おまえとふたりきり",null,"生存者は今日も笑う","コール　アンド　レスポンス","暑中見舞－憂鬱な午後－",null,null,"パワー・イン・ザ・ワールド","昔の侍","晩秋の一夜","ヒトコイシクテ、アイヲモトメテ","ゴクロウサン","ＯＨ　ＹＥＡＨ！（ココロに花を）","翳りゆく部屋","ハナウタ～遠い昔からの物語～","男は行く",null,"笑顔の未来へ","笑顔の未来へ","俺たちの明日","今宵の月のように","四月の風","うれしけりゃとんでゆけよ","男は行く","ＲＡＩＮＢＯＷ","月の夜","月の夜","ハナウタ～遠い昔からの物語～","赤い薔薇","Ｎｏ　ｍｏｒｅ　ｃｒｙ"]
[20,null,null,null,null,null,"男餓鬼道空っ風","Ｂａｂｙ自転車","悲しみの果て","悲しみの果て","悲しみの果て","やさしさ","星の降るような夜に",null,"ｓｏｕｌ　ｒｅｓｃｕｅ","風に吹かれて","やさしさ",null,null,"珍奇男","極楽大将生活賛歌","過ぎゆく日々","月の夜","真夏の革命","ハナウタ～遠い昔からの物語～","ＯＨ　ＹＥＡＨ！（ココロに花を）","ＦＬＹＥＲ","武蔵野",null,"ズレてる方がいい","ズレてる方がいい","ズレてる方がいい","めんどくせい","友達がいるのさ","ｓｏ　ｍａｎｙ　ｐｅｏｐｌｅ","友達がいるのさ","今宵の月のように","武蔵野","武蔵野","今宵の月のように","ズレてる方がいい","シグナル"]
[21,null,null,null,null,null,"涙","悲しみの果て","赤い薔薇","はじまりは今","はじまりは今",null,"花男",null,"ガストロンジャー","やさしさ","ファイティングマン",null,null,"星の降るような夜に","涙","夢の中で","ｓｏ　ｍａｎｙ　ｐｅｏｐｌｅ","シグナル","ＦＬＹＥＲ","ハナウタ～遠い昔からの物語～","ガストロンジャー","生命賛歌",null,"俺たちの明日","俺たちの明日","明日を行け","化ケモノ青年","ｉ　ａｍ　ｈｕｎｇｒｙ","四月の風","今宵の月のように","笑顔の未来へ","俺たちの明日","俺たちの明日","友達がいるのさ","俺たちの明日","友達がいるのさ"]
[22,null,null,null,null,null,"ファイティングマン","ドビッシャー男",null,"今宵の月のように","今宵の月のように",null,"愛の夢をくれ",null,null,"極楽大将生活賛歌","今宵の月のように",null,null,null,"凡人－散歩き－","ゲンカクＧｅｔ　Ｕｐ　Ｂａｂｙ","星の降るような夜に","笑顔の未来へ","ガストロンジャー","ＦＬＹＥＲ","珍奇男","幸せよ、この指にとまれ",null,"今宵の月のように","今宵の月のように","Ｄｅｓｔｉｎｙ","ズレてる方がいい","今宵の月のように","友達がいるのさ","ベイベー明日は俺の夢","友達がいるのさ","友達がいるのさ","友達がいるのさ","かけだす男","ｓｏ　ｍａｎｙ　ｐｅｏｐｌｅ","ＲＡＩＮＢＯＷ"]
[23,null,null,null,null,null,"太陽ギラギラ","男餓鬼道空っ風",null,"ヒトコイシクテ、アイヲモトメテ","ヒトコイシクテ、アイヲモトメテ",null,"ファイティングマン",null,null,"過ぎゆく日々","花男",null,null,null,"明日に向かって走れ","極楽大将生活賛歌","武蔵野","ＦＬＹＥＲ","ファイティングマン","コール　アンド　レスポンス","Ｂａｂｙ自転車","友達がいるのさ",null,"友達がいるのさ","武蔵野","友達がいるのさ","ガストロンジャー","涙","ｉ　ａｍ　ｈｕｎｇｒｙ",3210,"シグナル","ズレてる方がいい","ズレてる方がいい","ｓｏ　ｍａｎｙ　ｐｅｏｐｌｅ","星の降るような夜に","ｓｏ　ｍａｎｙ　ｐｅｏｐｌｅ"]
[24,null,null,null,null,null,"やさしさ","星の降るような夜に",null,null,null,null,null,null,null,"星の降るような夜に","星の降るような夜に",null,null,null,"月の夜","ガストロンジャー","なぜだか、俺は祷ってゐた。","俺たちの明日","ｓｏ　ｍａｎｙ　ｐｅｏｐｌｅ","ゴクロウサン","悲しみの果て","笑顔の未来へ",null,"ｓｏ　ｍａｎｙ　ｐｅｏｐｌｅ","コール　アンド　レスポンス","Ｉ　ａｍ　ｈａｐｐｙ","ＲＡＩＮＢＯＷ","コール　アンド　レスポンス","今宵の月のように","ＲＡＩＮＢＯＷ","悲しみの果て","星の降るような夜に","ｓｏ　ｍａｎｙ　ｐｅｏｐｌｅ","男は行く","友達がいるのさ","ｙｅｓ．　Ｉ．　ｄｏ"]
[25,null,null,null,null,null,"待つ男","通りを越え行く",null,null,null,null,null,null,null,"涙","コール　アンド　レスポンス",null,null,null,"ガストロンジャー","なぜだか、俺は祷ってゐた。","俺たちの明日","てって","やさしさ","ファイティングマン","花男","ガストロンジャー",null,"ガストロンジャー","ガストロンジャー","ガストロンジャー","生命賛歌","ＲＡＩＮＢＯＷ","涙","ガストロンジャー","歩いてゆく","ファイティングマン","ファイティングマン","ファイティングマン","ファイティングマン","ズレてる方がいい"]
[26,null,null,null,null,null,null,"ファイティングマン",null,null,null,null,null,null,null,"四月の風","四月の風",null,null,null,"武蔵野","流れ星のやうな人生",null,"今宵の月のように","今宵の月のように","あの風のように","デーデ","ファイティングマン",null,"ファイティングマン","ファイティングマン","世界伝統のマスター馬鹿","星の降るような夜に","ＦＬＹＥＲ","コール　アンド　レスポンス","ゴクロウサン","月の夜",null,"星の降るような夜に","星の降るような夜に",null,"俺たちの明日"]
[27,null,null,null,null,null,null,null,null,null,null,null,null,null,null,null,null,null,null,null,"ファイティングマン","昔の侍",null,"武蔵野","笑顔の未来へ","友達がいるのさ","いつか見た夢を","今宵の月のように",null,"花男","待つ男","ハナウタ～遠い昔からの物語～","友達がいるのさ","星の降るような夜に","ＲＡＩＮＢＯＷ","風と共に","旅立ちの朝",null,null,"風に吹かれて",null,"ファイティングマン"]
[28,null,null,null,null,null,null,null,null,null,null,null,null,null,null,null,null,null,null,null,null,"武蔵野",null,"新しい季節へキミと","Ｓｋｙ　ｉｓ　ｂｌｕｅ","デーデ",null,null,null,null,null,"今宵の月のように","愛すべき今日","夢を追う旅人","ＦＬＹＥＲ","星の降るような夜に","男は行く",null,null,"待つ男",null,"星の降るような夜に"]
[29,null,null,null,null,null,null,null,null,null,null,null,null,null,null,null,null,null,null,null,null,"悲しみの果て",null,null,"俺たちの明日","笑顔の未来へ",null,null,null,null,null,"月夜の散歩","ファイティングマン","ガストロンジャー","星の降るような夜に","花男","星の降るような夜に",null,null,null,null,"今宵の月のように"]
[30,null,null,null,null,null,null,null,null,null,null,null,null,null,null,null,null,null,null,null,null,"この世は最高！",null,null,null,"俺たちの明日",null,null,null,null,null,"朝",null,"ファイティングマン","夢を追う旅人","ファイティングマン","ファイティングマン",null,null,null,null,"花男"]
[31,null,null,null,null,null,null,null,null,null,null,null,null,null,null,null,null,null,null,null,null,"花男",null,null,null,"Ｓｋｙ　ｉｓ　ｂｌｕｅ",null,null,null,null,null,"悪魔メフィスト",null,"この世は最高！","ガストロンジャー","待つ男"]
[32,null,null,null,null,null,null,null,null,null,null,null,null,null,null,null,null,null,null,null,null,null,null,null,null,"花男",null,null,null,null,null,"ファイティングマン",null,"夢のちまた","ファイティングマン"]
[33,null,null,null,null,null,null,null,null,null,null,null,null,null,null,null,null,null,null,null,null,null,null,null,null,"ガストロンジャー",null,null,null,null,null,"男は行く",null,null,"この世は最高！"]
[34,null,null,null,null,null,null,null,null,null,null,null,null,null,null,null,null,null,null,null,null,null,null,null,null,null,null,null,null,null,null,null,null,null,"待つ男"]